fUSD/lending_fUSD_20250214
["ID","MTS","AMOUNT","RATE_DAILY","PERIOD"]
[353048498,1739524233478,-225.0901956,9.993e-05,2]
[353048499,1739524233489,-212.9276303,9.993e-05,2]
[353048500,1739524233499,-200.7650651,9.993e-05,2]
[353048501,1739524233509,-188.6024998,9.993e-05,2]
[353048502,1739524233519,-752.63353,9.993e-05,2]
[353048503,1739524233528,-711.9655907,9.993e-05,2]
[353048504,1739524233538,-671.2976514,9.993e-05,2]
[353048505,1739524233547,-630.6297121,9.993e-05,2]
[353048506,1739524233556,-1399.2943409,9.993e-05,2]
[353048507,1739524233565,-1317.8633899,9.993e-05,2]
[353048508,1739524233575,-1236.4324389,9.993e-05,2]
[353048509,1739524233586,-1155.0014878,9.993e-05,2]
[353048510,1739524233595,-3444.0476132,9.993e-05,2]
[353048511,1739524233605,-3243.6236822,9.993e-05,2]
[353048512,1739524233615,-3043.1997511,9.993e-05,2]
[353048513,1739524233625,-2842.7758201,9.993e-05,2]
[353048514,1739524233635,-50188.90897312,9.999e-05,2]
[353048515,1739524233644,-500.0,9.999e-05,2]
[353048516,1739524233655,-831.0,0.0001,2]
[353048517,1739524233664,-156.83594988,0.0001,2]
[353048518,1739524233674,-1507182.74857173,0.0001,2]
[353048519,1739524233684,-1851.89247107,0.0001,2]
[353048520,1739524233693,-2348737.54463049,0.0001,2]
[353048521,1739524233707,-68502.65715522,0.0001,2]
[353048522,1739524233725,-1000.0,0.0001,2]
[353048523,1739524233741,-3963.04,0.0001,2]
[353048524,1739524235630,-2400.0,0.0001,2]
[353048525,1739524235642,-2139.23480222,0.0001,2]
[353048526,1739524235685,-550.99707701,0.0001,2]
[353048527,1739524235742,-2813.51741713,0.0001,2]
[353048528,1739524235753,-68474.8662059,0.0001,2]
[353048553,1739524238310,-27440.9281,0.0001,2]
[353048658,1739524240460,-269.93,0.0001,2]
[353048659,1739524240565,-375.07,0.0001,2]
[353048660,1739524240575,-5024.52184711,0.0001,2]
[353048661,1739524240831,-5067.87052526,0.0001,2]
[353048662,1739524240847,-406.88999998,0.0001,2]
[353048694,1739524243666,-236942.17362435,0.0001,2]
[353048695,1739524243676,-159961.05767716,0.0001,2]
[353048706,1739524246386,-584.0,0.0001,2]
[353048707,1739524246395,-65.19999994,0.0001,2]
[353048719,1739524529369,388.0,0.0002,120]
[353048722,1739524994348,1696.31,0.00020735,60]
[353048723,1739525002282,990.0,0.0002,120]
[353048724,1739525207266,184.16,8.201e-05,2]
[353048728,1739525396187,4137.95,0.00020735,60]
[353048738,1739525431497,-712.79842,8.219e-05,2]
[353048740,1739525431512,-558.40158,8.219e-05,2]
[353048743,1739525431521,-200.0,8.369e-05,2]
[353048746,1739525431531,-1.05781,8.475e-05,2]
[353048749,1739525431543,-198.94219,8.475e-05,2]
[353048750,1739525431552,-242.56,8.52e-05,2]
[353048751,1739525431562,-250.0,8.537e-05,2]
[353048752,1739525431571,-245.75,8.545e-05,2]
[353048753,1739525431580,-119.13781,8.554e-05,2]
[353048754,1739525431594,-46.17219,8.554e-05,2]
[353048755,1739525431605,-330.18,8.558e-05,2]
[353048756,1739525431614,-1820.59,8.56e-05,2]
[353048757,1739525431624,-200.0,8.613e-05,2]
[353048758,1739525431634,-1551.18,9.041e-05,2]
[353048759,1739525431643,-200.0,9.041e-05,2]
[353048760,1739525431652,-775.59,9.141e-05,2]
[353048761,1739525431661,-775.59,9.141e-05,2]
[353048762,1739525431671,-197.11,9.373e-05,2]
[353048763,1739525431680,-197.11,9.375e-05,2]
[353048764,1739525431689,-197.11,9.378e-05,2]
[353048765,1739525431698,-197.11,9.38e-05,2]
[353048766,1739525431707,-197.11,9.383e-05,2]
[353048767,1739525431717,-197.11,9.385e-05,2]
[353048768,1739525431726,-197.11,9.387e-05,2]
[353048769,1739525431738,-197.11,9.39e-05,2]
[353048770,1739525431747,-197.11,9.392e-05,2]
[353048771,1739525431756,-197.11,9.395e-05,2]
[353048772,1739525431765,-197.11,9.397e-05,2]
[353048773,1739525431775,-197.11,9.4e-05,2]
[353048774,1739525431784,-300.0,9.4e-05,2]
[353048775,1739525431794,-150.0,9.4e-05,2]
[353048776,1739525431803,-197.11,9.402e-05,2]
[353048777,1739525431811,-197.11,9.405e-05,2]
[353048778,1739525431822,-197.11,9.407e-05,2]
[353048779,1739525431831,-197.11,9.41e-05,2]
[353048780,1739525431840,-197.11,9.412e-05,2]
[353048781,1739525431849,-197.11,9.415e-05,2]
[353048782,1739525431859,-197.11,9.417e-05,2]
[353048783,1739525431868,-197.11,9.419e-05,2]
[353048784,1739525431877,-1500.0,9.421e-05,2]
[353048785,1739525431886,-2000.0,9.503e-05,2]
[353048786,1739525431895,-500.0,9.562e-05,2]
[353048787,1739525431904,-388.02,9.606e-05,2]
[353048788,1739525431914,-1343.24315895,9.606e-05,2]
[353048789,1739525431923,-1000.0,9.709e-05,2]
[353048790,1739525431932,-255.696,9.78e-05,2]
[353048791,1739525431942,-2227.666,9.78e-05,2]
[353048793,1739525431951,-880.0,9.83e-05,2]
[353048794,1739525431960,-440.0,9.83e-05,2]
[353048796,1739525431970,-440.0,9.83e-05,2]
[353048798,1739525431979,-1003.23,9.83e-05,2]
[353048800,1739525431988,-2500.0,9.88e-05,2]
[353048802,1739525431997,-2500.0,9.88e-05,2]
[353048804,1739525432006,-1000.0,9.97e-05,2]
[353048806,1739525432016,-500.0,9.97e-05,2]
[353048808,1739525432027,-1000.0,9.97e-05,2]
[353048810,1739525432036,-500.0,9.97e-05,2]
[353048812,1739525432045,-500.0,9.973e-05,2]
[353048814,1739525432054,-500.0,9.979e-05,2]
[353048816,1739525432064,-500.0,9.979e-05,2]
[353048818,1739525432074,-305.83943068,9.979e-05,2]
[353048820,1739525432083,-11135.60035037,9.98e-05,2]
[353048822,1739525432096,-832.4738,9.98e-05,2]
[353048825,1739525432113,-319.87720466,9.98e-05,2]
[353048827,1739525432124,-2536.00133897,9.98e-05,2]
[353048833,1739525432156,-35655.82998263,9.98e-05,2]
[353049379,1739525437711,-3043.3082438,9.98e-05,2]
[353049570,1739525439599,-200.0,9.5e-05,3]
[353049572,1739525439609,-114.85936386,9.98e-05,2]
[353049607,1739525439932,-413109.912,9.98e-05,2]
[353049609,1739525439948,-8158.28400002,9.98e-05,2]
[353049614,1739525439987,-27673.96466022,9.98e-05,2]
[353049617,1739525439999,-542.8,9.98e-05,2]
[353049910,1739525442688,-500.0,9.6e-05,3]
[353049912,1739525442697,-159461.05767716,9.98e-05,2]
[353049924,1739525442799,-258.78517497,9.98e-05,2]
[353049926,1739525442810,-2454.21,9.98e-05,2]
[353049932,1739525442854,-1912.26362945,9.98e-05,2]
[353050245,1739525445694,-700.0,9.7e-05,3]
[353050247,1739525445704,-160.9485256,9.8e-05,3]
[353050258,1739525445807,-839.0514744,9.8e-05,3]
[353050260,1739525445817,-816.7285356,9.98e-05,2]
[353050624,1739526631800,-1207.64,8.219e-05,2]
[353050625,1739526631810,-200.0,8.539e-05,2]
[353050626,1739526631820,-150.0,8.539e-05,2]
[353050627,1739526631829,-200.0,8.889e-05,2]
[353050628,1739526631839,-150.0,8.889e-05,2]
[353050629,1739526631848,-200.0,9.041e-05,2]
[353050630,1739526631857,-150.0,9.041e-05,2]
[353050631,1739526631867,-761.18,9.129e-05,2]
[353050632,1739526631876,-273.2,9.199e-05,2]
[353050633,1739526631886,-2000.0,9.314e-05,2]
[353050634,1739526631895,-36013.0087412,9.314e-05,2]
[353050635,1739526631906,-440.0,9.37e-05,2]
[353050636,1739526631918,-778.25,9.37e-05,2]
[353050637,1739526631927,-440.0,9.37e-05,2]
[353050638,1739526631937,-250.0,9.373e-05,2]
[353050639,1739526631948,-989.5,9.38e-05,2]
[353050640,1739526631958,-161.11,9.497e-05,2]
[353050641,1739526631967,-500.0,9.562e-05,2]
[353050642,1739526631978,-150.0,9.562e-05,2]
[353050643,1739526631988,-775.59,9.57e-05,2]
[353050644,1739526632000,-200.0,9.589e-05,2]
[353050645,1739526632010,-1500.0,9.595e-05,2]
[353050646,1739526632020,-2216.682,9.972e-05,2]
[353050647,1739526632030,-239.602,9.972e-05,2]
[353050648,1739526632039,-500.0,9.973e-05,2]
[353050649,1739526632049,-164.07907656,9.973e-05,2]
[353050650,1739526632059,-500.37752513,9.973e-05,2]
[353050651,1739526632068,-582.13903436,9.978e-05,2]
[353050652,1739526632078,-150.0,9.978e-05,2]
[353050653,1739526632089,-500.0,9.979e-05,2]
[353050654,1739526632099,-500.0,9.979e-05,2]
[353050655,1739526632109,-479.45409962,9.979e-05,2]
[353050656,1739526632119,-500.0,9.979e-05,2]
[353050657,1739526632129,-8411.16467642,9.979e-05,2]
[353050658,1739526632140,-360.4367498,9.979e-05,2]
[353050659,1739526632151,-18928.81618522,9.979e-05,2]
[353050660,1739526632169,-1273.3784205,9.979e-05,2]
[353050661,1739526632181,-385.1781132,9.979e-05,2]
[353050662,1739526632193,-4858.38509949,9.979e-05,2]
[353050679,1739526637682,-692.03736966,9.979e-05,2]
[353050680,1739526637744,-918.84764387,9.979e-05,2]
[353050681,1739526637814,-1004.48226134,9.979e-05,2]
[353050682,1739526637826,-1432.28020275,9.979e-05,2]
[353050683,1739526637881,-6734.99327775,9.979e-05,2]
[353050685,1739526637890,-4308.07727283,9.98e-05,2]
[353050687,1739526637903,-2243.22307939,9.98e-05,2]
[353050690,1739526637917,-375248.16738588,9.98e-05,2]
[353050898,1739526640066,-146056.44600005,9.98e-05,2]
[353050900,1739526640078,-124159.5,9.98e-05,2]
[353051178,1739526642816,-159461.05767716,9.98e-05,2]
[353051401,1739526645672,-2902.5081283,9.98e-05,2]
[353051402,1739526645836,-536.41,9.98e-05,2]
[353051403,1739526645850,-398.06,9.98e-05,2]
[353051404,1739526645893,-4863.80895001,9.98e-05,2]
[353051405,1739526645908,-49115.97749833,9.98e-05,2]
[353051406,1739526926560,-151.71,8.633e-05,2]
[353051407,1739526926585,-7498.29,8.836e-05,2]
[353051408,1739527142874,-683.3525,8.836e-05,2]
[353051409,1739527142897,-200.0,8.836e-05,2]
[353051410,1739527142919,-856.6475,8.836e-05,2]
[353051421,1739527831896,-1407.93,8.219e-05,2]
[353051422,1739527831905,-90.85949728,8.471e-05,2]
[353051423,1739527831916,-109.14050272,8.471e-05,2]
[353051424,1739527831926,-467.01325903,8.722e-05,2]
[353051428,1739527832005,-1026.73024974,8.722e-05,2]
[353051429,1739527835028,-506.25649123,8.722e-05,2]
[353051430,1739527835038,-6.43136793,8.836e-05,2]
[353051431,1739527835047,-573.90474164,8.846e-05,2]
[353051432,1739527835059,-371.148197,8.846e-05,2]
[353051433,1739527835088,-492.07583408,8.846e-05,2]
[353051434,1739527835098,-250.0,8.846e-05,2]
[353051435,1739527835107,-2104.22846909,8.927e-05,2]
[353051436,1739527835204,-8460.2035753,8.927e-05,2]
[353051437,1739527835215,-705.06356644,8.927e-05,2]
[353051622,1739527837815,-12630.50438917,8.927e-05,2]
[353051623,1739527837825,-499.7433,8.973e-05,2]
[353051624,1739527837836,-150.0,9e-05,2]
[353051625,1739527837846,-150.0,9e-05,2]
[353051626,1739527837855,-150.0,9e-05,2]
[353051627,1739527837864,-168.96646591,9.041e-05,2]
[353051628,1739527837877,-31.03353409,9.041e-05,2]
[353051629,1739527837889,-200.0,9.041e-05,2]
[353051630,1739527837899,-161.98,9.046e-05,2]
[353051631,1739527837909,-150.0,9.111e-05,2]
[353051632,1739527837919,-1084.1,9.129e-05,2]
[353051633,1739527837929,-20.98736209,9.222e-05,2]
[353051634,1739527837947,-129.01263791,9.222e-05,2]
[353051635,1739527837957,-164.46385182,9.316e-05,2]
[353051636,1739527837969,-35.53614818,9.316e-05,2]
[353051637,1739527837980,-150.0,9.333e-05,2]
[353051638,1739527837990,-110.40166554,9.358e-05,2]
[353051639,1739527838003,-1389.59833446,9.358e-05,2]
[353051640,1739527838012,-150.0,9.444e-05,2]
[353051641,1739527838022,-159.41,9.499e-05,2]
[353051642,1739527838031,-900.0,9.5e-05,3]
[353051643,1739527838041,-150.0,9.556e-05,2]
[353051644,1739527838050,-500.0,9.562e-05,2]
[353051645,1739527838060,-1800.0,9.6e-05,3]
[353051646,1739527838069,-150.0,9.641e-05,2]
[353051647,1739527838081,-178.32,9.641e-05,2]
[353051648,1739527838091,-150.0,9.667e-05,2]
[353051649,1739527838100,-2700.0,9.7e-05,3]
[353051650,1739527838111,-150.0,9.778e-05,2]
[353051651,1739527838122,-3262.64784319,9.8e-05,3]
[353051652,1739527838149,-337.35215681,9.8e-05,3]
[353051654,1739527838159,-1728.77058082,9.88e-05,2]
[353051656,1739527838168,-1728.77058082,9.88e-05,2]
[353051658,1739527838178,-150.0,9.889e-05,2]
[353051660,1739527838187,-4500.0,9.9e-05,3]
[353051662,1739527838197,-336.50307252,9.973e-05,2]
[353051664,1739527838207,-150.0,9.976e-05,2]
[353051666,1739527838217,-636.0,9.98e-05,2]
[353051668,1739527838226,-3751.36642429,9.98e-05,2]
[353051848,1739527839993,-578.6613056,9.98e-05,2]
[353051850,1739527840004,-289.15000193,9.98e-05,2]
[353051856,1739527840050,-1049.41419005,9.98e-05,2]
[353051858,1739527840064,-1685.77121904,9.98e-05,2]
[353051859,1739527840076,-1007.52312096,9.98e-05,2]
[353051861,1739527840169,-1705.5582732,9.98e-05,2]
[353051864,1739527840180,-4919.72166071,9.98e-05,2]
[353051874,1739527840263,-193129.40211064,9.98e-05,2]
[353051877,1739527840288,-156903.5163519,9.98e-05,2]
[353051883,1739527840337,-467.4210005,9.98e-05,2]
[353051885,1739527840350,-550.00001,9.98e-05,2]
[353052024,1739527842911,-570.0,9.98e-05,2]
[353052025,1739527842921,-595.58339243,9.98e-05,2]
[353052026,1739527842967,-1302.1840501,9.98e-05,2]
[353052027,1739527843025,-159461.05767716,9.98e-05,2]
[353052028,1739527843036,-10868.80000001,9.98e-05,2]
[353052029,1739527843190,-739.24797877,9.98e-05,2]
[353052030,1739527843202,-9000.0,9.98e-05,2]
[353052031,1739527843246,-2721.4802,9.98e-05,2]
[353052032,1739527843258,-500.0,9.98e-05,2]
[353052033,1739527843269,-14208.67603151,9.98e-05,2]
[353052043,1739527845816,-5004.8703576,9.98e-05,2]
[353052044,1739527845829,-7529.14446822,9.98e-05,2]
[353052045,1739527845856,-4039.03819057,9.98e-05,2]
[353052046,1739527845868,-409.065,9.98e-05,2]
[353052047,1739527845922,-187129.80665647,9.98e-05,2]
[353052048,1739527845981,-4858.29104999,9.98e-05,2]
[353052049,1739527845992,-341.36038789,9.98e-05,2]
[353052050,1739527846039,-8250.72644033,9.98e-05,2]
[353052051,1739527846096,-2866.43,9.98e-05,2]
[353052052,1739527846155,-489.41182749,9.98e-05,2]
[353052149,1739528807251,1000.0,0.00020727,60]
[353052165,1739529032024,-1447.24,8.219e-05,2]
[353052167,1739529032036,-24.90757156,8.461e-05,2]
[353052168,1739529032049,-175.09242844,8.461e-05,2]
[353052169,1739529032060,-200.0,8.693e-05,2]
[353052170,1739529032070,-565.99,8.703e-05,2]
[353052171,1739529032081,-6.2277259,8.78e-05,2]
[353052172,1739529032094,-752.76793986,8.78e-05,2]
[353052173,1739529032108,-282.20816542,8.78e-05,2]
[353052174,1739529032122,-958.79616882,8.78e-05,2]
[353052175,1739529032133,-297.0,8.849e-05,2]
[353052176,1739529032144,-300.0,8.914e-05,2]
[353052177,1739529032154,-4630.97132019,8.915e-05,2]
[353052178,1739529032166,-280.710003,8.915e-05,2]
[353052179,1739529032189,-2995.83,8.915e-05,2]
[353052180,1739529032204,-294.33656805,8.915e-05,2]
[353052181,1739529032217,-475.22000005,8.915e-05,2]
[353052182,1739529032231,-413.27807374,8.915e-05,2]
[353052183,1739529032252,-14809.65403497,8.915e-05,2]
[353052184,1739529032264,-623.07,8.921e-05,2]
[353052185,1739529032277,-1241.1477,8.973e-05,2]
[353052186,1739529032288,-3290.1666,8.973e-05,2]
[353052187,1739529032300,-150.0,9e-05,2]
[353052188,1739529032311,-150.0,9e-05,2]
[353052189,1739529032325,-150.0,9e-05,2]
[353052190,1739529032335,-150.50178747,9e-05,2]
[353052191,1739529032345,-250.0,9.035e-05,2]
[353052192,1739529032359,-200.0,9.041e-05,2]
[353052193,1739529032370,-501.0,9.123e-05,2]
[353052194,1739529032381,-163.28,9.188e-05,2]
[353052195,1739529032393,-943.42,9.244e-05,2]
[353052196,1739529032404,-161.42,9.469e-05,2]
[353052198,1739529032415,-1053.7,9.47e-05,2]
[353052200,1739529032426,-161.42,9.481e-05,2]
[353052203,1739529032436,-161.42,9.493e-05,2]
[353052205,1739529032447,-161.42,9.505e-05,2]
[353052207,1739529032457,-161.42,9.516e-05,2]
[353052209,1739529032467,-1500.0,9.533e-05,2]
[353052210,1739529032478,-200.0,9.535e-05,2]
[353052211,1739529032488,-500.0,9.562e-05,2]
[353052212,1739529032499,-565.99,9.791e-05,2]
[353052213,1739529032510,-150.0,9.791e-05,2]
[353052214,1739529032520,-420.0,9.806e-05,2]
[353052215,1739529032530,-1001.35714676,9.979e-05,2]
[353052216,1739529032541,-182.64865427,9.979e-05,2]
[353052218,1739529032552,-1687.26804536,9.979e-05,2]
[353052219,1739529032563,-21432.3636171,9.98e-05,2]
[353052220,1739529032578,-2677.33162773,9.98e-05,2]
[353052221,1739529032591,-193871.8216,9.98e-05,2]
[353052222,1739529032609,-416.79146914,9.98e-05,2]
[353052223,1739529032621,-540.49795588,9.98e-05,2]
[353052224,1739529032635,-5450.527,9.98e-05,2]
[353052225,1739529032652,-8925.070902,9.98e-05,2]
[353052229,1739529037930,-2976.7763258,9.98e-05,2]
[353052230,1739529037942,-349.50898736,9.98e-05,2]
[353052231,1739529038091,-9117.32424806,9.98e-05,2]
[353052232,1739529038103,-731.103313,9.98e-05,2]
[353052233,1739529038116,-21209.03485618,9.98e-05,2]
[353052234,1739529038128,-464.8573957,9.98e-05,2]
[353052235,1739529038197,-1941.2271712,9.98e-05,2]
[353052238,1739529038209,-14723.47418834,9.98e-05,2]
[353052240,1739529038220,-190030.85078793,9.98e-05,2]
[353052422,1739529040010,-5281.2,9.98e-05,2]
[353052433,1739529040065,-483493.77378785,9.98e-05,2]
[353052435,1739529040075,-296.527,9.98e-05,2]
[353052438,1739529040086,-3328.406,9.98e-05,2]
[353052440,1739529040095,-318922.11535432,9.98e-05,2]
[353052443,1739529040104,-812.1269731,9.993e-05,2]
[353052446,1739529040113,-318.0119265,9.993e-05,2]
[353052448,1739529040123,-508.0,0.0001,2]
[353052451,1739529040132,-104497.20677571,0.0001,2]
[353052453,1739529040142,-1691446.38466697,0.0001,2]
[353052456,1739529040151,-1587480.73239209,0.0001,2]
[353052459,1739529040160,-500.0,0.0001,2]
[353052461,1739529040170,-663528.56508684,0.0001,2]
[353052464,1739529040179,-577862.32722627,0.0001,2]
[353052467,1739529040191,-8344.36384485,0.0001,2]
[353052469,1739529040202,-8102.28231326,0.0001,2]
[353052473,1739529040230,-630.29178433,0.0001,2]
[353052476,1739529040250,-543.485,0.0001,2]
[353052490,1739529040390,-20031.46164136,0.0001,2]
[353052514,1739529043089,-7801.89057942,0.0001,2]
[353052515,1739529043326,-50214.19558654,0.0001,2]
[353052534,1739529046031,-85282.78939427,0.0001,2]
[353052535,1739529046141,-1124.16157574,0.0001,2]
[353052536,1739529046209,-4977.8112073,0.0001,2]
[353052537,1739529046220,-5389.99999999,0.0001,2]
[353052672,1739529250219,-150.0,9.883e-05,2]
[353052673,1739529250253,-200.0,9.979e-05,2]
[353052674,1739529250286,-687.2279338,9.992e-05,2]
[353052675,1739529250320,-641.4127382,9.993e-05,2]
[353052676,1739529250350,-150.0,9.999e-05,2]
[353052677,1739529250385,-500.0,9.999e-05,2]
[353052678,1739529250415,-500.0,9.999e-05,2]
[353052679,1739529250445,-500.0,9.999e-05,2]
[353052680,1739529250475,-500.0,9.999e-05,2]
[353052681,1739529250503,-500.0,9.999e-05,2]
[353052682,1739529250534,-539.82737567,9.999e-05,2]
[353052683,1739529250564,-5131.53195233,0.0001,2]
[353052684,1739529280153,222.0,0.0002,120]
[353052685,1739529302816,-266.3233345,9.993e-05,2]
[353052686,1739529302845,-1733.6766655,0.0001,2]
[353052687,1739529304751,-2000.0,0.0001,2]
[353052688,1739529306890,-2000.0,0.0001,2]
[353052689,1739529313020,-2000.0,0.0001,2]
[353052696,1739530232209,-954.15705325,8.219e-05,2]
[353052697,1739530232263,-8696.84294675,8.219e-05,2]
[353052698,1739530232273,-200.0,8.219e-05,2]
[353052699,1739530232283,-1374.87,8.219e-05,2]
[353052700,1739530232292,-528.9893,8.699e-05,2]
[353052701,1739530232303,-199.6969,8.836e-05,2]
[353052702,1739530232312,-889.39,8.887e-05,2]
[353052703,1739530232322,-2002.64973919,9.03e-05,2]
[353052704,1739530232334,-3715.57995216,9.03e-05,2]
[353052705,1739530232345,-586.2,9.03e-05,2]
[353052706,1739530232524,-2605.21471463,9.03e-05,2]
[353052707,1739530232535,-378.65149525,9.03e-05,2]
[353052708,1739530232547,-400.0,9.03e-05,2]
[353053244,1739530238144,-14211.70409877,9.03e-05,2]
[353053246,1739530238154,-200.0,9.041e-05,2]
[353053248,1739530238163,-200.0,9.041e-05,2]
[353053249,1739530238173,-250.0,9.315e-05,2]
[353053251,1739530238185,-366.04,9.469e-05,2]
[353053253,1739530238194,-311.53,9.539e-05,2]
[353053255,1739530238204,-250.0,9.563e-05,2]
[353053257,1739530238213,-150.0,9.726e-05,2]
[353053259,1739530238222,-150.0,9.749e-05,2]
[353053261,1739530238232,-150.0,9.758e-05,2]
[353053263,1739530238241,-220.54511947,9.782e-05,2]
[353053265,1739530238251,-150.0,9.786e-05,2]
[353053267,1739530238260,-4639.99481477,9.9e-05,2]
[353053269,1739530238269,-390.3088143,9.99e-05,2]
[353053271,1739530238279,-359.69459057,9.992e-05,2]
[353053273,1739530238289,-199.8672934,9.992e-05,2]
[353053275,1739530238299,-374.6852217,9.993e-05,2]
[353053277,1739530238309,-191.8668459,9.993e-05,2]
[353053279,1739530238318,-1285.43076066,9.999e-05,3]
[353053281,1739530238327,-150.0,9.999e-05,2]
[353053283,1739530238337,-240065.56672236,0.0001,2]
[353053285,1739530238346,-214.67501984,0.0001,2]
[353053287,1739530238355,-2622.20407599,0.0001,2]
[353053289,1739530238365,-64314.31249286,0.0001,2]
[353053291,1739530238374,-199.93788653,0.0001,2]
[353053293,1739530238383,-54648.96549308,0.0001,2]
[353053295,1739530238392,-244777.83229339,0.0001,2]
[353053297,1739530238402,-1050.0776,0.0001,5]
[353053299,1739530238411,-151.0,0.0001,2]
[353053301,1739530238420,-151.0,0.0001,2]
[353053303,1739530238431,-152.008224,0.0001,2]
[353053305,1739530238440,-3119.6,0.0001,2]
[353053307,1739530238449,-237.221,0.0001,2]
[353053309,1739530238459,-2662.724,0.0001,2]
[353053311,1739530238467,-151.19737243,0.0001,2]
[353053313,1739530238477,-317.41756786,0.0001,2]
[353053315,1739530238487,-267.54,0.00010137,2]
[353053317,1739530238496,-310.65,0.00010137,2]
[353053319,1739530238505,-173.0,0.00010137,2]
[353053321,1739530238514,-8680.51330619,0.0001032,2]
[353053323,1739530238523,-419.9015576,0.00010347,2]
[353053325,1739530238532,-1374.87,0.00010434,2]
[353053327,1739530238542,-419.9015577,0.00010537,2]
[353053329,1739530238551,-2743.375,0.00010579,2]
[353053331,1739530238560,-543.792,0.00010579,2]
[353053346,1739530238699,-908.0,0.00010579,2]
[353053348,1739530238709,-1265.0,0.00010579,2]
[353053350,1739530238719,-4027.0,0.00010579,2]
[353053352,1739530238729,-244.493,0.00010579,2]
[353053354,1739530238738,-157.907,0.00010579,2]
[353053356,1739530238747,-3915.0,0.00010579,2]
[353053358,1739530238756,-1109.0,0.00010579,2]
[353053360,1739530238765,-257.29816654,0.000107,2]
[353053362,1739530238775,-1209.9277537,0.00010736,2]
[353053364,1739530238785,-771.02389464,0.000108,2]
[353053366,1739530238793,-540.35,0.00010801,2]
[353053368,1739530238803,-565.99,0.00010879,2]
[353053370,1739530238813,-169.14414928,0.000109,2]
[353053372,1739530238822,-153.39134553,0.000109,2]
[353053375,1739530238831,-153.39134549,0.000109,2]
[353053377,1739530238840,-759.87,0.00010959,2]
[353053379,1739530238849,-150.0,0.00010959,2]
[353053381,1739530238859,-284.9,0.00010959,2]
[353053383,1739530238868,-150.0,0.0001097,2]
[353053385,1739530238878,-1500.0,0.00010999,2]
[353053387,1739530238887,-162.3322483,0.00010999,2]
[353053389,1739530238897,-255.0,0.00010999,2]
[353053391,1739530238907,-11761.8647983,0.00011,2]
[353053393,1739530238916,-162.63,0.00011009,2]
[353053395,1739530238926,-1369.97648589,0.00011099,2]
[353053397,1739530238936,-1369.97648582,0.00011099,2]
[353053399,1739530238945,-667.23046602,0.00011099,2]
[353053401,1739530238954,-667.23046594,0.00011099,2]
[353053403,1739530238963,-1000.0,0.00011149,2]
[353053405,1739530238973,-166.23,0.00011215,2]
[353053406,1739530238982,-1136.14,0.00011288,2]
[353053408,1739530238991,-774.96,0.00011288,2]
[353053411,1739530239000,-438.07,0.00011288,2]
[353053412,1739530239010,-440.0,0.00011288,2]
[353053415,1739530239019,-2751.0,0.00011507,2]
[353053416,1739530239029,-1369.97648582,0.00011678,2]
[353053418,1739530239039,-667.23046594,0.00011678,2]
[353053421,1739530239050,-153.39134549,0.000119,2]
[353053423,1739530239059,-565.99,0.00011967,2]
[353053425,1739530239069,-5000.0,0.00012,2]
[353053427,1739530239078,-492.73,0.00012,2]
[353053429,1739530239087,-438.7,0.00012,2]
[353053431,1739530239097,-540.35,0.00012151,2]
[353053432,1739530239106,-300.0,0.00012247,2]
[353053434,1739530239115,-986.27,0.00012247,2]
[353053436,1739530239124,-986.27,0.00012247,2]
[353053438,1739530239137,-986.27,0.00012247,2]
[353053440,1739530239147,-986.27,0.00012247,2]
[353053442,1739530239156,-150.0,0.00012247,2]
[353053444,1739530239165,-438.97,0.00012247,2]
[353053446,1739530239175,-986.27,0.00012247,2]
[353053448,1739530239186,-438.97,0.00012247,2]
[353053450,1739530239195,-150.0,0.00012247,2]
[353053452,1739530239205,-438.97,0.00012247,2]
[353053454,1739530239216,-150.0,0.00012247,2]
[353053456,1739530239227,-151.06,0.00012247,2]
[353053458,1739530239236,-438.97,0.00012247,2]
[353053460,1739530239246,-1401.32,0.00012247,2]
[353053462,1739530239256,-438.97,0.00012247,2]
[353053464,1739530239265,-264.97,0.00012247,2]
[353053467,1739530239276,-985.93,0.00012247,2]
[353053469,1739530239286,-877.54,0.00012247,2]
[353053471,1739530239295,-505.25,0.00012301,2]
[353053473,1739530239304,-440.0,0.00012301,2]
[353053475,1739530239314,-440.0,0.00012301,2]